Cogmind - Beta 13 @@@ ROGUE MODE // 2024.05.09 @ 15:24:51 Player: Millea Result: Self-destructed Performance ------------- Evolutions (1) 500 Regions Visited (5) 1000 Robots Destroyed (21) 105 Value Destroyed (527) 527 Prototype IDs (8) 160 Alien Tech Used (0) 0 Bonus (-330) -330 TOTAL SCORE: 1962 Bonus ------- Friendly Fire -330 Cogmind --------- Core Integrity 25/400 Matter 202/300 Energy 310/310 System Corruption 0% Temperature Cool (0) Movement Walking (120) Location -8/Mines Parts ------- > --- POWER (1) -------- Reinforced Fission Core > --- PROPULSION (2) --- Advanced Myomer Leg Advanced Myomer Leg > --- UTILITY (4) ------ Heat Sink Gravity Neutralizer Advanced Transmission Jammer > --- WEAPON (2) ------- 8R-AWN's Boregun > --- INVENTORY (5) ---- EX Chip 1 EX Chip 2 EX Chip 2 EX Chip 2 EX Chip 2 Peak State ------------ > --- POWER ------------ Reinforced Fission Core > --- PROPULSION ------- Advanced Myomer Leg Advanced Myomer Leg > --- UTILITY ---------- Heat Sink Gravity Neutralizer Advanced Transmission Jammer Core Shielding > --- WEAPON ----------- 8R-AWN's Boregun 8R-AWN's Boregun > --- INVENTORY -------- EX Chip 2 EX Chip 2 EX Chip 2 EX Chip 2 Katana [Rating: 58] Favorites ----------- Power Ion Engine Engine Ion Engine Power Core Light Neutrino Core Propulsion Light Treads Treads Light Treads Leg Advanced Myomer Leg Utility Heat Sink Device Heat Sink Storage Small Battery Protection Core Shielding Weapon 8R-AWN's Boregun Energy Gun Small Laser Ballistic Gun 8R-AWN's Boregun Ballistic Cannon Improved Light Cannon Launcher Mini Grenade Launcher Slashing Weapon Katana Build | -11 -10 -9 -9 -9 -8 ------- Run | Yrd Mat Mat Min Exi Min Slots Evolved 2 | . . 2 . . . Power . | . . . . . . Propulsion . | . . . . . . Utility 2 | . . 2 . . . Weapon . | . . . . . . Parts Attached 40 | 7 2 4 4 23 . Power 5 | 1 . . 1 3 . Engine 3 | 1 . . 1 1 . Core 2 | . . . . 2 . Reactor . | . . . . . . Propulsion 6 | 2 . . . 4 . Treads 4 | 2 . . . 2 . Leg 2 | . . . . 2 . Wheel . | . . . . . . Hover . | . . . . . . Flight . | . . . . . . Utility 14 | 2 2 2 2 6 . Device 6 | 1 1 . 1 3 . Storage 5 | 1 1 2 . 1 . Processor . | . . . . . . Hackware . | . . . . . . Protection 3 | . . . 1 2 . Artifact . | . . . . . . Weapon 15 | 2 . 2 1 10 . Energy Gun 2 | 1 . 1 . . . Energy Cannon . | . . . . . . Ballistic Gun 8 | 1 . 1 . 6 . Ballistic Cannon 1 | . . . 1 . . Launcher 2 | . . . . 2 . Special Weapon . | . . . . . . Impact Weapon . | . . . . . . Slashing Weapon 2 | . . . . 2 . Piercing Weapon . | . . . . . . Special Melee Weapon . | . . . . . . Unidentified Prototypes 4 | . . . . 4 . Parts Lost 16 | . . . 1 13 2 Power 3 | . . . . 3 . Propulsion 4 | . . . . 4 . Utility 6 | . . . 1 4 1 Weapon 3 | . . . . 2 1 Highest Loss Streak 7 | . . . 1 7 2 To Critical Strikes 3 | . . . . 3 . Average Slot Usage (%) 95 | . 100 100 99 93 96 Engine 4 | . 14 11 11 1 . Core 5 | . . . . 7 11 Treads 16 | . 28 22 22 14 . Leg 4 | . . . . 5 22 Device 15 | . 14 11 11 15 33 Storage 17 | . 14 33 23 16 . Protection 8 | . . . 9 10 9 Energy Gun 1 | . 14 10 . . . Ballistic Gun 15 | . 14 11 11 17 20 Ballistic Cannon 2 | . . . 10 1 . Slashing Weapon 1 | . . . . 2 . Naked Turns . | . . . . . . Heaviest Build 36 | 14 19 23 27 36 36 Greatest Support 72 | 40 40 40 40 72 60 Greatest Overweight (x) 7 | . . . . 7 . Average Overweight (x) . | . . . . . . Largest Inventory Capacity 10 | 8 10 10 10 10 5 Average Capacity 8 | 6 8 10 10 8 5 Most Carried 10 | 1 9 10 10 10 5 Average Carried 7 | . 3 7 9 7 5 Final Capacity 10 | 8 10 10 10 5 5 Final Carried 10 | 1 8 10 10 5 5 Class Distribution -------------------- 57% | Scavenger-Mutant 42% | Mutant Dominant Class ---------------- Mutant | -10/Materials Mutant | -9/Materials Mutant | -9/Mines Scavenger-Mutant | -9/Exiles Scavenger-Mutant | -8/Mines Resources | -11 -10 -9 -9 -9 -8 ----------- Run | Yrd Mat Mat Min Exi Min Matter Collected 938 | 73 244 124 86 411 . Remotely . | . . . . . . Salvage Created 910 | 25 244 220 147 154 120 Parts 61 | 2 14 26 10 5 4 Haulers Intercepted 1 | . 1 . . . . Recyclers Shooed . | . . . . . . Parts Field Recycled . | . . . . . . Retrieved Matter . | . . . . . . Parts Self-Destructed . | . . . . . . Prevented . | . . . . . . Kills | -11 -10 -9 -9 -9 -8 ------- Run | Yrd Mat Mat Min Exi Min Combat Hostiles Destroyed 20 | . 2 6 4 6 2 Melee 1 | . . . . 1 . Guns 12 | . 2 6 2 . 2 Cannons 2 | . . . 2 . . AOE 5 | . . . . 5 . Classes Destroyed 12 | 1 3 4 2 2 . Builder 1 | . . 1 . . . Tunneler 1 | 1 . . . . . Hauler 1 | . 1 . . . . Recycler 1 | . 1 . . . . Turret 1 | . . . . 1 . Watcher 2 | . . 2 . . . Swarmer 3 | . . 3 . . . Grunt 8 | . 2 2 2 . 2 Brawler 1 | . . . 1 . . Duelist 1 | . . 1 . . . Demolisher 1 | . . . 1 . . Assembled 6 | . . . . 6 . Best Kill Streak 5 | 1 3 5 3 5 1 Combat Bots Only 5 | . 2 3 3 5 1 Max Kills in Single Turn 2 | 1 2 2 1 2 1 Gunslinging 1 | . 1 . . . . Exploded 2 | . . . . 2 . Melee 1 | . . . . 1 . Uniques/NPCs Destroyed 1 | . . . . 1 . 8R-AWN (-9/Exiles) Combat | -11 -10 -9 -9 -9 -8 -------- Run | Yrd Mat Mat Min Exi Min Hostile Shots Fired 153 | . 12 25 11 76 29 Missed 37 | . 5 11 2 15 4 Damage Taken 2352 | . 76 137 171 1552 416 Core 375 | . . 35 12 228 100 Absorbed by Shields . | . . . . . . Redirected to Shielding 40 | . . . . 27 13 Core Remaining (%) 100 | 100 100 . . . . Volleys Fired 87 | 5 13 21 8 24 16 Largest 2 | 2 2 2 2 2 2 Hottest 63 | 60 60 63 62 62 60 Shots Fired 154 | 10 26 40 16 44 18 Gun 134 | 10 26 40 8 32 18 Cannon 15 | . . . 8 7 . Launcher 5 | . . . . 5 . Special . | . . . . . . Kinetic 112 | 5 13 21 16 39 18 Thermal 37 | 5 13 19 . . . Explosive 5 | . . . . 5 . Electromagnetic . | . . . . . . Robot Hit Streak 8 | 2 7 8 5 6 4 Robot Miss Streak 6 | 2 4 5 1 6 2 Penetration Max 1 | . . . . . 1 Secondary Targets 3 | . 1 2 . . . Max Gunslinging Chain 1 | . 1 1 . . . Shots Hit Robots 100 | 5 15 19 10 39 12 Core Hits 51 | 1 6 13 6 21 4 Critical Kills 3 | . 1 . . 1 1 Critical Parts Destroyed 6 | . . . . . 6 Critical Strikes 13 | . 1 . . 5 7 Destroy 11 | . 1 . . 3 7 Sever 2 | . . . . 2 . Melee Attacks 27 | . . . . 27 . Impact . | . . . . . . Slashing 27 | . . . . 27 . Piercing . | . . . . . . Sneak Attacks . | . . . . . . Combat Hostiles . | . . . . . . Follow-up Attacks . | . . . . . . Damage Inflicted 2404 | 62 188 292 165 1434 263 Guns 1050 | 61 185 292 87 177 248 Cannons 141 | . . . 78 63 . Explosions 540 | . . . . 540 . Melee 654 | . . . . 654 . Ramming 19 | 1 3 . . . 15 Kinetic 950 | 40 104 153 165 240 248 Thermal 241 | 21 81 139 . . . Explosive 540 | . . . . 540 . Electromagnetic . | . . . . . . Impact . | . . . . . . Slashing 654 | . . . . 654 . Piercing . | . . . . . . Highest Corruption . | . . . . . . Average Corruption . | . . . . . . Corruption Purged . | . . . . . . Corruption Blocked . | . . . . . . Overload Shots . | . . . . . . Overflow Damage 20 | . . . . 20 . Projectiles . | . . . . . . Explosions 20 | . . . . 20 . Melee . | . . . . . . Knockbacks 2 | . . . 1 1 . Impact . | . . . . . . Kinetic 2 | . . . 1 1 . Secondary . | . . . . . . Self-Inflicted Damage 30 | . . . . 30 . Shots 1 | . . . . 1 . Rammed 3 | 1 1 . 1 . . Targets Rammed 5 | 1 1 . 1 . 2 Kicked 2 | . . . . . 2 Crushed . | . . . . . . Highest Temperature 42 | . 42 . . . 24 Average Temperature 22 | . 29 . . . 13 Received Heat Transfer 363 | . 42 30 48 . 243 Siege Activations . | . . . . . . Robots Corrupted . | . . . . . . Combat Hostiles . | . . . . . . Parts Fried . | . . . . . . Impact Corruptions . | . . . . . . Robots Melted . | . . . . . . Combat Hostiles . | . . . . . . Parts Melted . | . . . . . . Heat Transferred 525 | 50 175 300 . . . Parts Sabotaged . | . . . . . . Parts Stolen . | . . . . . . Parts Stripped . | . . . . . . Power Chain Reactions . | . . . . . . Alert | -11 -10 -9 -9 -9 -8 ------- Run | Yrd Mat Mat Min Exi Min Peak Influence 225 | 5 121 225 77 . 52 Initial 50 | . 3 50 5 . . Average 45 | 1 45 90 50 . 5 Maximum Alert Level 1 | . . 1 . . . Low Security (%) 97 | 100 100 85 100 . 100 Level 1 2 | . . 14 . . . Level 2 . | . . . . . . Level 3 . | . . . . . . Level 4 . | . . . . . . Level 5 . | . . . . . . High Security . | . . . . . . Max Security . | . . . . . . Squads Dispatched 2 | . 2 . . . . Investigation 1 | . 1 . . . . Extermination . | . . . . . . Reinforcement 1 | . 1 . . . . Assault . | . . . . . . Garrison . | . . . . . . Intercept . | . . . . . . Searches Triggered . | . . . . . . Construction Impeded . | . . . . . . Haulers Reinforced . | . . . . . . Active Scanning Responses . | . . . . . . Cargo Convoy Interrupts . | . . . . . . Stealth | -11 -10 -9 -9 -9 -8 --------- Run | Yrd Mat Mat Min Exi Min Distress Signals 1 | . . 1 . . . Communications Jammed . | . . . . . . Distress Signals . | . . . . . . Times Spotted 34 | . 2 12 4 13 3 Peak Tracking Total 6 | . 2 4 3 6 3 Tactical Retreats 5 | . . . . 5 . Traps | -11 -10 -9 -9 -9 -8 ------- Run | Yrd Mat Mat Min Exi Min Traps Triggered . | . . . . . . Indirectly . | . . . . . . Trap Hack Attempts . | . . . . . . Triggered . | . . . . . . Disarmed . | . . . . . . Reprogrammed . | . . . . . . Reused . | . . . . . . Traps Extracted . | . . . . . . Installed . | . . . . . . Triggered . | . . . . . . Machines | -11 -10 -9 -9 -9 -8 ---------- Run | Yrd Mat Mat Min Exi Min Machines Disabled 10 | . . . . 9 1 Max in Single Turn 2 | . . . . 2 1 Machines Repaired . | . . . . . . Machines Dismantled . | . . . . . . Machines Sabotaged . | . . . . . . Overloaded Fab Kills . | . . . . . . Hacking | -11 -10 -9 -9 -9 -8 --------- Run | Yrd Mat Mat Min Exi Min Machines Accessed 7 | . 3 1 . 1 2 Terminals 5 | . 2 1 . . 2 Fabricators . | . . . . . . Repair Stations . | . . . . . . Recycling Units 1 | . 1 . . . . Scanalyzers . | . . . . . . Garrison Access . | . . . . . . Total Hacks 18 | . 9 4 . 1 4 Successful 11 | . 4 3 . 1 3 Failed 6 | . 4 1 . . 1 Catastrophic . | . . . . . . Database Lockouts 1 | . 1 . . . . Manual 12 | . 6 4 . 2 . Terminals 16 | . 8 4 . . 4 Fabricators . | . . . . . . Repair Stations . | . . . . . . Recycling Units 1 | . 1 . . . . Scanalyzers . | . . . . . . Garrison Access . | . . . . . . Terminal Hacks 10 | . 3 3 . 1 3 Record 2 | . . . . 1 1 Robot Analysis 2 | . 1 1 . . . Prototype ID Bank 2 | . 2 . . . . Unreport Threat 2 | . . 2 . . . Assault Status 1 | . . . . . 1 Zone Layout 1 | . . . . . 1 Fabricator Hacks . | . . . . . . Repair Station Hacks . | . . . . . . Recycling Unit Hacks . | . . . . . . Scanalyzer . | . . . . . . Garrison Access Hacks . | . . . . . . Unauthorized Hacks 1 | . 1 . . . . Terminals . | . . . . . . Fabricators . | . . . . . . Repair Stations . | . . . . . . Recycling Units 1 | . 1 . . . . Tunnel 1 | . 1 . . . . Scanalyzers . | . . . . . . Garrison Access . | . . . . . . Data Cores Recovered . | . . . . . . Used . | . . . . . . Hacking Detections 4 | . 2 1 . . 1 Full Trace Events . | . . . . . . Feedback Events . | . . . . . . Feedback Blocked . | . . . . . . Robot Schematics Acquired . | . . . . . . Robots Built . | . . . . . . Authchips . | . . . . . . Time . | . . . . . . Total Robot Build Rating . | . . . . . . Part Schematics Acquired . | . . . . . . Parts Built . | . . . . . . Authchips . | . . . . . . Time . | . . . . . . Total Part Build Rating . | . . . . . . Parts Repaired . | . . . . . . Time . | . . . . . . Parts Recycled . | . . . . . . Recycled Matter . | . . . . . . Retrieved Matter . | . . . . . . Retrieved Components . | . . . . . . Parts Scanalyzed . | . . . . . . Part Schematics Acquired . | . . . . . . Parts Damaged . | . . . . . . Bothacking | -11 -10 -9 -9 -9 -8 ------------ Run | Yrd Mat Mat Min Exi Min Used RIF Installer . | . . . . . . Robots Hacked . | . . . . . . Non-combat . | . . . . . . Combat . | . . . . . . Robot Hacks Applied . | . . . . . . Relay Couplers Released . | . . . . . . Fabnet Peak Effective % . | . . . . . . Robots Rewired . | . . . . . . Allies Hacked . | . . . . . . Hacks Repelled . | . . . . . . Allies | -11 -10 -9 -9 -9 -8 -------- Run | Yrd Mat Mat Min Exi Min Total Allies . | . . . . . . Largest Group . | . . . . . . Highest-Rated Group . | . . . . . . Highest-Rated Ally . | . . . . . . Total Orders . | . . . . . . Ally Attacks . | . . . . . . Total Damage . | . . . . . . Kills . | . . . . . . Allies Corrupted . | . . . . . . Allies Melted . | . . . . . . Intel | -11 -10 -9 -9 -9 -8 ------- Run | Yrd Mat Mat Min Exi Min Robot Analysis Total 2 | . 1 1 . . . Derelict Logs Recovered 1 | . . . 1 . . Drone Launches . | . . . . . . Drone Recoveries . | . . . . . . Exploration | -11 -10 -9 -9 -9 -8 ------------- Run | Yrd Mat Mat Min Exi Min Turns Passed 2931 | 98 178 204 572 1671 208 Spaces Moved 1508 | 46 80 81 317 841 143 Core 34 | 3 . . . 31 . Treads 1011 | 43 80 81 317 490 . Legs 463 | . . . . 320 143 Wheels . | . . . . . . Hover . | . . . . . . Flight . | . . . . . . Fastest Speed 50 | 50 160 160 160 50 120 Average Speed 150 | 152 160 160 160 150 120 Slowest Speed 400 | 160 160 160 160 400 120 Overloaded Moves . | . . . . . . Propulsion Burnouts . | . . . . . . Robots Hopped . | . . . . . . Cave-ins Triggered . | . . . . . . Exploration Rate (%) 33 | 4 22 11 55 69 42 Regions Visited 5 Branch Regions 3 Pre-discovered Areas 2 | . 1 . 1 . . Known Exits Taken . | . . . . . . Unknown Exits Taken 5 | 1 1 1 1 1 . Scrap Searched 2 | . . . 2 . . Spaces Dug . | . . . . . . Terrain Destroyed 37 | . . . 2 30 5 Melee . | . . . . . . Projectile 7 | . . . 2 . 5 AOE 30 | . . . . 30 . Terrain Rammed . | . . . . . . Walls Destroyed . | . . . . . . Machines Disabled . | . . . . . . Actions | -11 -10 -9 -9 -9 -8 --------- Run | Yrd Mat Mat Min Exi Min Total 1964 | 60 103 115 366 1159 161 Wait 257 | . . 4 30 223 . Move 1503 | 45 79 80 316 840 143 Hop . | . . . . . . Pick Up 30 | 2 7 5 3 13 . Fast Attach 16 | 6 . . 1 9 . Attach 10 | 1 . 2 1 6 . Detach . | . . . . . . Swap 14 | . 2 2 2 8 . Drop 15 | . 1 1 4 9 . Fire 87 | 5 13 21 8 24 16 Melee 27 | . . . . 27 . Ram . | . . . . . . Kick 2 | . . . . . 2 Crush 3 | 1 1 . 1 . . Escape Stasis . | . . . . . . Rewire . | . . . . . . Trap . | . . . . . . Miscellaneous . | . . . . . . Route ------- -11/Scrapyard -10/Materials -9/Materials -9/Mines -9/Exiles -8/Mines (discovered 1 exit: [*Mat]) History --------- Turn | Location | Event 7 | -11/Scrapyard | Discovered new exit (range 16) 99 | -11/Scrapyard | Entered Materials 149 | -10/Materials | Central database locked down 177 | -10/Materials | Discovered new exit (range 11) 277 | -10/Materials | Entered another Materials area 277 | -9/Materials | Evolved 2 slots: Utility x2 329 | -9/Materials | Build established: Mutant 391 | -9/Materials | Discovered new exit (range 13) 481 | -9/Materials | Entered Mines 503 | -9/Mines | Learned location of Zion (-6) 578 | -9/Mines | Assembled infested the area 998 | -9/Mines | Deemed a non-threat by the Exiles lab entrance 998 | -9/Mines | Discovered new exit (range 5) 1053 | -9/Mines | Entered Exiles 1092 | -9/Exiles | Met 8R-AWN 1121 | -9/Exiles | Met EX-HEX 1169 | -9/Exiles | Met EX-BIN 1218 | -9/Exiles | Attacked by the Exiles 1287 | -9/Exiles | Found Prototype Ballistic Gun 1314 | -9/Exiles | Lost 7 parts (2p2n1u2w) 1324 | -9/Exiles | Identified 8R-AWN's Boregun 1327 | -9/Exiles | Found 8R-AWN's Boregun 1510 | -9/Exiles | Build established: Scavenger-Mutant 2286 | -9/Exiles | Core integrity fell below 50% 2316 | -9/Exiles | Destroyed 8R-AWN 2318 | -9/Exiles | Lost 4 parts (1p1n2u) 2528 | -9/Exiles | Discovered new exit (range 10) 2724 | -9/Exiles | Entered Mines 2907 | -8/Mines | Core integrity fell below 20% 2913 | -8/Mines | Discovered new exit (range 6) 2932 | -8/Mines | Self-destructed Last Messages --------------- 02909_ Destroyed Hvy. Laser. 02911_ HV Slug penetrates G-50 Soldier. 02911_ G-50 Soldier suffers critical hit (Destroy). 02911_ Destroyed Lgt. Angular Momentum Engine. 02911_ HV Slug penetrates Pulverizer. 02912_ Critical hit (Burn: +37). 02913_ EXIT=FOUND 02915_ HV Slug penetrates Wall. 02920_ HV Slug penetrates G-50 Soldier. 02922_ HV Slug penetrates G-47 Trooper. 02922_ HV Slug penetrates Pulverizer. 02924_ HV Slug penetrates Wall. 02926_ HV Slug penetrates G-47 Trooper. 02926_ HV Slug penetrates Pulverizer. 02928_ HV Slug penetrates G-47 Trooper. 02928_ HV Slug penetrates Pulverizer. 02930_ HV Slug penetrates G-47 Trooper. 02930_ G-47 Trooper destroyed. 02930_ HV Slug penetrates Wall. Map ----- +----------------------------------------------------+ | ?????????????# ###### # | | ????????###??# #????# | | ???????## ### ###??## ## # | | ???????# ## ##??### ##??? | | ????#### #?????# # ###?? | | ????# ### #??????### ??? | | ????# ##### ##???????# ###?? | | ????# ##?### ##?????# #???? | | ???## ###### ###??# #???? | | ??## ### ### #???? | | ??# ### #???? | | ??# #?##### """ #???? | | ??# #??????## """ #???? | | ??## ########### """ ##??? | | ???# #### #### #??? | | ???# ### #### | | ???## ## | | ????## ### # | | ?????# ###?# ## ### | | ?????# #???# ### #?? | | ?????# #???# #?###### #?? | | ?????# #???# #??????## ## ##?? | | ?????# ##### #???????####?# ##??? | | ?????# #????????????? #???? | | ?????##### ###????????????? #??? | | ?????????#@#???????????????? #??? | | ?????????# #????????????????# #??? | | ???????? ???????????????? #??? | | ?????? #??????????????? #??? | | ?????# *= #??????????????? #??? | | ?????# <%[ #???????????????? ??? | | ?????# = % #???????????????????? | | ?????# #???????????????????? | | ?????# #???????????????????? | | ?????# #???????????????????? | | ?????# " #???????????????????? | | ?????# ;???????????????????? | | ?????#######;##???????????????????? | | ???????????? ?????????????????????? | | ??????????????????????????????????? | | | | | | | | | | | | | | | | | | | | | +----------------------------------------------------+ Best States ------------- Heat Dissipation 38 Energy Generation 19 Energy Capacity 450 Matter Stores 300 Matter Capacity 300 Sight Range 16 Terrain Scan Density 10 Jamming Range 16 Additional Mass Support 12 Armor Coverage 150 Core Shielding 20 Weapon Cycling 25 Evasion (%) 55 Recoil Reduction 2 Item Schematics ----------------- None Robot Schematics ------------------ None Fabricated ------------ Nothing Alien Tech Used ----------------- None Achievements -------------- None Challenges ------------ None Game ------ Seed VisualLinearPrototype Manual? 0 Play Time 00:14:01 Cumulative 338.7 hours Start 2024.05.09 @ 15:11:55 End 2024.05.09 @ 15:24:51 Sessions 1 Manual Loads 0 Difficulty Rogue Special Mode None Game No. 249 Rogue 249 Adventurer 0 Explorer 0 Win Type - Total 12 Types 8/0/3/1/0/0/0/0/0 Lore% 80 Gallery% 88 Achievement% 75 Wizard Run 0 Options --------- Layout 2 ASCII 1 Keyboard 0 Movement Mouse Keybinds 0 Fullscreen 2 Font 24/Smallcaps Map View 50x44 Zoom Use 0% Tactical HUD 1 Map Filters NONE Filters NONE Steam 1 RUN: 1031a204-be15-4e7d-a1a4-4b5a02f8fbbf